bitfinex/quotes_SOLUSD_20220210
["timestamp","ask_amount","ask_price","bid_price","bid_amount"]
[1644509403741,47.3974,112.37,112.26,10.67]
[1644509403942,4.45,112.4,112.27,13.3779]
[1644509404141,4.45,112.4,112.28,10.694]
[1644509404343,23.3186,112.44,112.28,10.694]
[1644509404344,47.08974945,112.42,112.29,90.194]
[1644509404542,47.08974945,112.42,112.3,10.67]
[1644509404748,47.08974945,112.42,112.31,4.473]
[1644509404946,47.08974945,112.42,112.33,13.3462]
[1644509405148,47.08974945,112.42,112.33,24.0402]
[1644509405442,47.08974945,112.42,112.33,16.694]
[1644509405657,60.44034945,112.42,112.33,6.024]
[1644509405844,60.44034945,112.42,112.33,0.024]
[1644509406045,46.10905607,112.42,112.33,6.024]
[1644509406245,36.81360367,112.4,112.33,0.024]
[1644509406454,36.81360367,112.4,112.3,10.694]
[1644509406645,36.77491184,112.38,112.3,0.024]
[1644509406852,42.23484001,112.36,112.31,0.024]
[1644509407046,42.23484001,112.36,112.26,12.31279314]
[1644509407245,42.23484001,112.36,112.26,18.31279314]
[1644509407647,42.23484001,112.36,112.26,18.28879314]
[1644509408046,55.59214001,112.36,112.26,18.31279314]
[1644509408346,46.63859518,112.34,112.26,18.28879314]
[1644509408545,46.63859518,112.34,112.27,0.024]
[1644509408747,46.63859518,112.34,112.26,7.61879314]
[1644509408946,46.63859518,112.34,112.26,12.28879314]
[1644509409146,46.63859518,112.34,112.26,10.67]
[1644509409547,51.09059518,112.34,112.26,10.67]
[1644509409947,46.63859518,112.34,112.26,10.67]
[1644509410647,46.63859518,112.34,112.26,12.28879314]
[1644509410847,46.63859518,112.34,112.26,18.53879314]
[1644509411749,46.63859518,112.34,112.26,31.89399314]
[1644509412150,47.4273,112.37,112.26,31.89399314]
[1644509412351,24.1511,112.39,112.27,4.474]
[1644509412553,24.1511,112.39,112.28,10.694]
[1644509412752,24.1511,112.39,112.29,0.024]
[1644509412949,24.1511,112.39,112.3,10.67]
[1644509413150,38.29150258,112.38,112.3,10.67]
[1644509413373,42.74150258,112.38,112.3,10.67]
[1644509413550,42.74150258,112.38,112.29,0.024]
[1644509413750,42.74150258,112.38,112.28,0.024]
[1644509413751,53.41150258,112.38,112.28,0.024]
[1644509413950,13.3617,112.32,112.27,0.024]
[1644509414151,39.05275476,112.31,112.24,0.024]
[1644509414355,34.60075476,112.31,112.22,0.024]
[1644509415152,34.60075476,112.31,112.22,1.63872801]
[1644509415353,34.60075476,112.31,112.22,20.99932801]
[1644509415552,34.60075476,112.31,112.22,19.3846]
[1644509416152,4.453,112.34,112.22,20.99932801]
[1644509416354,25.45145763,112.36,112.23,10.694]
[1644509416551,24.188,112.36,112.24,13.3811]
[1644509416754,24.188,112.36,112.25,10.694]
[1644509416956,22.6844,112.38,112.26,0.024]
[1644509417157,41.69608516,112.37,112.27,10.67]
[1644509417354,41.69608516,112.37,112.27,108.70472801]
[1644509417554,41.69608516,112.37,112.28,1.61472801]
[1644509417754,22.6844,112.38,112.29,10.67]
[1644509417958,23.7916,112.41,112.29,10.694]
[1644509418155,23.7916,112.41,112.3,1.61472801]
[1644509418356,28.2416,112.41,112.31,10.67]
[1644509418554,28.2416,112.41,112.31,10.694]
[1644509418755,46.28999721,112.4,112.31,16.944]
[1644509419157,46.28999721,112.4,112.31,107.114]
[1644509419858,4.45,112.39,112.31,16.694]
[1644509420058,47.9371196,112.38,112.31,16.67]
[1644509420259,47.9371196,112.38,112.31,6.0]
[1644509420579,47.9371196,112.38,112.29,0.024]
[1644509420764,40.68654613,112.36,112.28,0.024]
[1644509420960,40.68654613,112.36,112.27,10.694]
[1644509421358,45.13654613,112.36,112.27,10.694]
[1644509421759,45.13654613,112.36,112.27,0.024]
[1644509422161,45.13654613,112.36,112.25,0.024]
[1644509422162,46.40000376,112.36,112.25,0.024]
[1644509422363,13.3587,112.34,112.23,13.3824]
[1644509422563,4.452,112.33,112.25,0.024]
[1644509422763,47.59372396,112.32,112.23,19.3824]
[1644509422966,47.59372396,112.32,112.23,6.024]
[1644509423267,47.59372396,112.32,112.23,0.024]
[1644509423469,47.59372396,112.32,112.23,6.0]
[1644509423664,47.59372396,112.32,112.23,6.024]
[1644509423865,49.2377,112.35,112.23,6.274]
[1644509424067,49.2377,112.35,112.24,10.694]
[1644509424266,49.2377,112.35,112.24,16.944]
[1644509424467,49.2377,112.35,112.25,1.61472801]
[1644509424674,49.2377,112.35,112.26,10.67]
[1644509424873,39.61462894,112.34,112.26,16.694]
[1644509425074,39.61462894,112.34,112.26,16.67]
[1644509425273,44.06662894,112.34,112.26,16.67]
[1644509425673,39.61462894,112.34,112.26,10.67]
[1644509425879,39.61462894,112.34,112.26,16.67]
[1644509426273,39.61462894,112.34,112.26,10.67]
[1644509427675,52.97322894,112.34,112.26,10.67]
[1644509428077,4.452,112.33,112.25,0.024]
[1644509428277,45.22849253,112.32,112.25,0.024]
[1644509428497,49.2377,112.35,112.24,24.3248]
[1644509428694,49.2377,112.35,112.25,12.28472801]
[1644509428897,14.61935763,112.37,112.25,116.45251697]
[1644509429095,1.26345763,112.37,112.26,0.024]
[1644509429295,4.45,112.37,112.27,10.67]
[1644509429495,37.25629866,112.36,112.27,10.67]
[1644509430606,37.25629866,112.36,112.26,0.024]
[1644509431203,34.45732965,112.34,112.26,0.024]
[1644509431401,34.45732965,112.34,112.25,10.694]
[1644509432699,47.81552965,112.34,112.25,10.694]
[1644509433902,13.3595,112.33,112.25,10.694]
[1644509434100,34.45732965,112.34,112.25,0.024]
[1644509434300,44.93738637,112.31,112.23,0.024]
[1644509434503,44.93738637,112.31,112.22,0.024]
[1644509434700,49.39038637,112.31,112.22,0.024]
[1644509434900,44.93738637,112.31,112.22,0.024]
[1644509435706,13.364,112.29,112.22,0.024]
[1644509435906,13.364,112.29,112.2,30.2247]
[1644509436205,46.30996371,112.28,112.2,30.2247]
[1644509436405,46.30996371,112.28,112.2,10.67]
[1644509436607,44.25751064,112.26,112.18,1.24625839]
[1644509436802,44.25751064,112.26,112.17,0.024]
[1644509436803,13.3709,112.24,112.17,0.024]
[1644509437005,45.53916399,112.24,112.15,1.24625839]
[1644509437202,45.53916399,112.24,112.14,1.24625839]
[1644509437604,4.456,112.27,112.15,21.89371271]
[1644509437805,3.49467917,112.29,112.15,34.20244072]
[1644509437806,4.456,112.29,112.15,34.20244072]
[1644509438004,13.3663,112.28,112.17,14.58815839]
[1644509438204,23.9141,112.3,112.18,11.91625839]
[1644509438404,23.9141,112.3,112.18,34.42844072]
[1644509438606,47.49449457,112.32,112.19,1.63872801]
[1644509438807,47.49449457,112.32,112.2,10.694]
[1644509439105,47.49449457,112.32,112.21,13.3834]
[1644509439304,51.94749457,112.32,112.22,10.67]
[1644509439504,47.49449457,112.32,112.22,12.30872801]
[1644509439705,47.49449457,112.32,112.22,18.30872801]
[1644509439906,47.49449457,112.32,112.22,7.63872801]
[1644509440308,47.49449457,112.32,112.22,16.694]
[1644509440708,47.49449457,112.32,112.22,30.0532]
[1644509441108,47.49449457,112.32,112.22,30.3032]
[1644509441708,47.49449457,112.32,112.22,30.0532]
[1644509441910,47.49449457,112.32,112.22,30.3032]
[1644509442109,47.49449457,112.32,112.22,30.0532]
[1644509442310,51.94749457,112.32,112.22,30.0532]
[1644509443009,51.94749457,112.32,112.22,31.66792801]
[1644509443213,24.3751,112.35,112.22,56.61366695]
[1644509443410,24.3751,112.35,112.24,13.3531]
[1644509443612,22.5344,112.37,112.25,100.84]
[1644509443913,22.5344,112.37,112.25,28.11210978]
[1644509444110,40.41264994,112.36,112.26,0.024]
[1644509444310,40.41264994,112.36,112.27,10.67]
[1644509444510,44.86264994,112.36,112.27,10.67]
[1644509444710,44.86264994,112.36,112.27,16.67]
[1644509444913,44.86264994,112.36,112.26,0.024]
[1644509445113,44.86264994,112.36,112.24,0.024]
[1644509445315,46.12610757,112.36,112.24,0.024]
[1644509445715,39.49997756,112.34,112.24,0.024]
[1644509445914,39.49997756,112.34,112.25,10.67]
[1644509446314,39.49997756,112.34,112.25,10.694]
[1644509446515,39.49997756,112.34,112.25,16.694]
[1644509446713,39.49997756,112.34,112.25,24.0268]
[1644509446918,39.49997756,112.34,112.25,30.2768]
[1644509447136,39.49997756,112.34,112.25,30.0268]
[1644509447314,39.49997756,112.34,112.25,30.2768]
[1644509448315,43.95197756,112.34,112.25,30.2768]
[1644509449719,4.452,112.34,112.26,91.78472801]
[1644509449916,24.0723,112.36,112.27,24.0233]
[1644509450315,5.71345763,112.4,112.28,1.61472801]
[1644509450522,1.26345763,112.4,112.29,10.67]
[1644509450717,43.06176354,112.39,112.29,10.67]
[1644509450919,43.06176354,112.39,112.29,30.2701]
[1644509451115,43.06176354,112.39,112.29,30.0201]
[1644509451318,43.06176354,112.39,112.29,24.0201]
[1644509451618,47.51176354,112.39,112.29,10.67]
[1644509452016,60.86406354,112.39,112.29,10.67]
[1644509452217,47.51176354,112.39,112.29,16.92]
[1644509452616,43.06176354,112.39,112.29,16.92]
[1644509453018,43.06176354,112.39,112.29,30.2718]
[1644509454318,56.41406354,112.39,112.29,10.67]
[1644509454517,43.06176354,112.39,112.29,10.67]
[1644509454824,43.06176354,112.39,112.29,16.67]
[1644509455018,4.45,112.38,112.29,10.67]
[1644509455218,38.86733699,112.37,112.29,16.67]
[1644509457221,52.22203699,112.37,112.29,10.67]
[1644509457422,43.31733699,112.37,112.27,10.67]
[1644509457621,38.86733699,112.37,112.27,10.67]
[1644509458021,46.75830033,112.35,112.27,10.67]
[1644509458427,60.11540033,112.35,112.27,10.67]
[1644509458622,60.11540033,112.35,112.25,0.024]
[1644509458623,46.75830033,112.35,112.25,0.024]
[1644509458922,34.67529369,112.33,112.23,0.024]
[1644509459121,47.38084873,112.31,112.2,0.024]
[1644509459524,50.71559238,112.29,112.2,0.024]
[1644509459723,37.35139238,112.29,112.19,10.694]
[1644509459923,4.454,112.28,112.19,0.024]
[1644509460122,48.13229736,112.27,112.19,0.024]
[1644509460323,4.455,112.26,112.18,0.024]
[1644509460523,34.35445355,112.25,112.18,0.024]
[1644509460722,34.35445355,112.25,112.17,6.0]
[1644509460723,34.35445355,112.25,112.17,0.024]
[1644509460923,4.455,112.24,112.16,0.024]
[1644509461122,47.39580653,112.23,112.14,0.024]
[1644509461323,47.39580653,112.23,112.13,1.24625839]
[1644509461524,47.39580653,112.23,112.14,27.28461556]
[1644509461723,47.39580653,112.23,112.15,1.22225839]
[1644509461928,47.39580653,112.23,112.15,11.89225839]
[1644509462146,47.39580653,112.23,112.16,20.67560982]
[1644509462544,13.3689,112.26,112.16,13.3689]
[1644509462747,106.979,112.3,112.17,0.024]
[1644509462944,29.0454,112.3,112.18,10.67]
[1644509463144,23.1419,112.32,112.18,13.5309864]
[1644509463345,4.454,112.31,112.19,112.43555625]
[1644509463645,44.44914883,112.3,112.2,25.66982801]
[1644509463845,44.44914883,112.3,112.21,0.024]
[1644509464044,44.44914883,112.3,112.2,20.65082824]
[1644509464245,44.44914883,112.3,112.2,0.024]
[1644509464746,44.44914883,112.3,112.2,13.3884]
[1644509464945,48.90314883,112.3,112.2,13.3884]
[1644509465347,48.90314883,112.3,112.2,19.6384]
[1644509465547,44.44914883,112.3,112.2,30.3084]
[1644509465747,44.44914883,112.3,112.2,30.2844]
[1644509465946,44.44914883,112.3,112.2,30.0584]
[1644509466350,44.44914883,112.3,112.2,30.3084]
[1644509468150,44.44914883,112.3,112.2,30.0584]
[1644509468351,57.81234883,112.3,112.2,31.67312801]
[1644509468552,57.81234883,112.3,112.2,30.0584]
[1644509468954,44.44914883,112.3,112.2,24.0584]
[1644509469153,44.44914883,112.3,112.2,37.4508]
[1644509469758,57.81214883,112.3,112.2,37.7008]
[1644509470156,57.81214883,112.3,112.2,37.4508]
[1644509470358,44.44914883,112.3,112.2,37.4508]
[1644509470555,44.44914883,112.3,112.2,24.0344]
[1644509470756,44.44914883,112.3,112.19,0.024]
[1644509470956,13.3665,112.28,112.19,0.024]
[1644509471154,41.21833539,112.27,112.19,0.024]
[1644509471655,41.21833539,112.27,112.18,16.67]
[1644509471854,36.76433539,112.27,112.18,16.67]
[1644509472655,36.76433539,112.27,112.19,103.5358]
[1644509472859,36.76433539,112.27,112.19,19.3658]
[1644509473056,36.76433539,112.27,112.19,13.3658]
[1644509473257,36.76433539,112.27,112.18,10.67]
[1644509473856,36.76433539,112.27,112.18,16.67]
[1644509474256,36.76433539,112.27,112.18,10.67]
[1644509474860,36.76433539,112.27,112.18,24.0369]
[1644509476860,13.3677,112.26,112.18,24.0369]
[1644509477063,38.67607557,112.25,112.18,24.0369]
[1644509479868,38.67607557,112.25,112.18,10.67]
[1644509480468,38.67607557,112.25,112.16,0.024]
[1644509480676,4.456,112.24,112.16,0.024]
[1644509480896,37.78711092,112.23,112.14,0.024]
[1644509481097,37.78711092,112.23,112.13,0.024]
[1644509481296,4.457,112.22,112.13,0.024]
[1644509481596,46.20150645,112.21,112.11,0.024]
[1644509481996,46.20150645,112.21,112.11,24.0694]
[1644509482196,46.20150645,112.21,112.11,41.07648518]
[1644509482395,46.20150645,112.21,112.11,47.32648518]
[1644509483196,46.20150645,112.21,112.11,47.30248518]
[1644509483398,46.20150645,112.21,112.11,47.32648518]
[1644509483794,46.20150645,112.21,112.11,47.07648518]
[1644509483996,46.20150645,112.21,112.11,30.0694]
[1644509484198,4.457,112.2,112.09,25.29355839]
[1644509484398,40.12539022,112.19,112.1,0.024]
[1644509484796,47.69885944,112.17,112.1,0.024]
[1644509485000,47.69885944,112.17,112.08,11.91625839]
[1644509485396,47.69885944,112.17,112.08,10.694]
[1644509485797,13.3795,112.16,112.08,24.0735]
[1644509486097,38.74480283,112.15,112.08,24.0735]
[1644509489513,52.12570283,112.15,112.08,0.024]
[1644509489707,4.458,112.14,112.06,13.4049]
[1644509489909,41.60064305,112.13,112.05,0.024]
[1644509490311,4.46,112.12,112.04,0.024]
[1644509490508,42.59013197,112.11,112.04,0.024]
[1644509490710,55.97553197,112.11,112.02,13.3861]
[1644509491111,7.0,112.08,111.98,10.36375108]
[1644509491312,140.67,112.07,111.95,2.45985932]
[1644509491513,151.54422154,112.07,111.94,2.45985932]
[1644509491711,147.36422154,112.07,111.91,14.05511493]
[1644509491911,47.4149,112.06,111.91,14.05511493]
[1644509492110,24.0639,112.05,111.91,14.05511493]
[1644509492312,24.0639,112.05,111.92,52.95092523]
[1644509492313,43.66971977,112.03,111.92,52.95092523]
[1644509493114,43.66971977,112.03,111.92,58.95092523]
[1644509493714,17.8589,112.05,111.92,72.34482523]
[1644509493914,55.65949797,112.24,111.94,0.45]
[1644509493915,4.465,112.12,111.94,0.45]
[1644509494114,55.65949797,112.13,111.96,133.87]
[1644509494314,60.12149797,112.13,111.97,10.67]
[1644509494516,60.12149797,112.13,111.97,12.28625514]
[1644509494714,56.13525634,112.12,111.98,33.67504504]
[1644509494914,35.91532165,112.1,111.98,33.67504504]
[1644509495114,13.3942,112.06,111.98,33.67504504]
[1644509495414,40.86167526,112.05,111.98,33.67504504]
[1644509496114,40.86167526,112.05,111.98,33.92504504]
[1644509496316,40.86167526,112.05,111.98,0.25]
[1644509496515,40.86167526,112.05,111.96,10.67]
[1644509497215,4.464,112.04,111.96,10.67]
[1644509497415,41.53966018,112.03,111.94,10.67]
[1644509497617,59.40146018,112.03,111.94,16.67]
[1644509497819,59.40146018,112.03,111.94,10.67]
[1644509498115,59.40146018,112.03,111.92,10.67]
[1644509498318,59.40146018,112.03,111.93,42.35673983]
[1644509499316,54.93746018,112.03,111.93,42.35673983]
[1644509499517,54.93746018,112.03,111.92,10.67]
[1644509499717,13.4026,111.99,111.91,0.44661493]
[1644509499917,4.466,111.98,111.91,0.44661493]
[1644509500418,41.03008988,111.99,111.91,0.44661493]
[1644509500618,45.49608988,111.99,111.91,0.44661493]
[1644509500820,56.41608988,111.99,111.91,0.44661493]
[1644509501017,51.95008988,111.99,111.91,0.44661493]
[1644509501819,37.70421857,111.97,111.91,0.44661493]
[1644509502219,123.0,111.96,111.85,24.0762]
[1644509502420,123.0,111.96,111.8,13.3136]
[1644509502421,4.466,111.96,111.82,122.57]
[1644509502720,29.2323,111.96,111.82,122.57]
[1644509503119,29.2323,111.96,111.82,124.19189676]
[1644509503322,37.54834324,111.95,111.82,124.19189676]
[1644509503520,17.8776,111.94,111.82,24.079]
[1644509503719,17.8776,111.94,111.82,10.67]
[1644509503920,28.5476,111.94,111.8,10.67]
[1644509504122,76.4678,111.94,111.8,10.67]
[1644509504321,48.41248191,111.93,111.8,10.67]
[1644509504524,17.882,111.92,111.81,28.78073385]
[1644509504722,35.36479544,111.91,111.81,28.78073385]
[1644509505122,35.36479544,111.91,111.81,29.03073385]
[1644509505323,35.36479544,111.91,111.81,0.25]
[1644509505522,35.36479544,111.91,111.8,10.92]
[1644509505723,35.36479544,111.91,111.81,13.4103]
[1644509506122,35.36479544,111.91,111.81,19.6603]
[1644509506324,35.36479544,111.91,111.81,57.69268769]
[1644509506929,39.83379544,111.91,111.81,57.69268769]
[1644509507744,40.08379544,111.91,111.81,13.4343]
[1644509507947,35.61479544,111.91,111.81,13.4343]
[1644509508549,35.61479544,111.91,111.81,24.0803]
[1644509508848,35.36479544,111.91,111.82,46.15382382]
[1644509509048,47.9202,111.94,111.83,10.67]
[1644509509249,28.0652,111.97,111.83,18.56589676]
[1644509509451,23.5962,111.97,111.84,9.84823576]
[1644509509650,23.5962,111.97,111.85,0.024]
[1644509509850,23.5962,111.97,111.86,10.67]
[1644509510053,38.9605028,111.96,111.86,10.67]
[1644509510249,36.02403998,111.94,111.86,0.024]
[1644509510650,36.02403998,111.94,111.83,10.694]
[1644509510851,17.8789,111.93,111.83,10.694]
[1644509511250,4.468,111.93,111.83,12.31589676]
[1644509511449,47.37344302,111.92,111.83,12.31589676]
[1644509511650,47.37344302,111.92,111.83,0.024]
[1644509512552,44.64943424,111.9,111.83,0.024]
[1644509512755,44.64943424,111.9,111.81,61.72186089]
[1644509512950,44.64943424,111.9,111.81,48.31106089]
[1644509513150,4.469,111.94,111.81,78.86428897]
[1644509513351,4.47,111.96,111.81,182.6829659]
[1644509513556,47.4184,111.97,111.84,44.6798]
[1644509513751,23.8222,111.97,111.85,10.694]
[1644509513951,23.8222,111.97,111.86,0.024]
[1644509514151,23.8222,111.97,111.86,46.9056953]
[1644509514152,35.78495709,111.96,111.86,46.9056953]
[1644509514450,35.78495709,111.96,111.86,53.1556953]
[1644509514653,27.7007,112.01,111.86,107.65223106]
[1644509514854,23.2347,112.01,111.87,90.194]
[1644509515053,23.2347,112.01,111.88,10.67]
[1644509515254,23.2347,112.01,111.89,0.024]
[1644509515453,23.2347,112.01,111.9,10.67]
[1644509515653,41.77159373,112.0,111.92,13.398]
[1644509515854,41.77159373,112.0,111.93,35.21777558]
[1644509517256,42.02159373,112.0,111.93,35.21777558]
[1644509518759,42.02159373,112.0,111.93,41.21777558]
[1644509518962,42.02159373,112.0,111.93,35.21777558]
[1644509519861,23.2347,112.01,111.93,48.61447558]
[1644509520062,23.2347,112.01,111.93,59.28447558]
[1644509520862,66.38290611,112.01,111.93,59.28447558]
[1644509521071,66.38290611,112.01,111.93,59.53447558]
[1644509521269,66.63290611,112.01,111.93,59.53447558]
[1644509521464,17.8583,112.07,111.93,59.53447558]
[1644509521667,27.6515,112.13,111.94,0.024]
[1644509521668,28.8748,112.12,111.94,0.024]
[1644509521866,24.4108,112.12,111.95,11.12]
[1644509522075,24.7831,112.14,111.98,13.8365]
[1644509522266,4.462,112.13,111.99,10.694]
[1644509522465,39.14074334,112.12,112.0,44.6336]
[1644509522667,39.14074334,112.12,112.01,46.81188818]
[1644509522866,39.14074334,112.12,112.01,52.81188818]
[1644509523066,39.14074334,112.12,112.01,53.06188818]
[1644509523868,39.14074334,112.12,112.01,66.44778818]
[1644509524267,39.14074334,112.12,112.01,60.19778818]
[1644509524669,4.461,112.11,112.01,24.0799]
[1644509524870,4.461,112.11,112.01,24.0559]
[1644509525069,4.461,112.11,112.01,13.3859]
[1644509525469,4.461,112.11,112.01,13.4099]
[1644509525671,4.461,112.11,112.01,0.024]
[1644509525672,47.82272248,112.1,112.01,0.024]
[1644509525869,47.82272248,112.1,112.0,54.30117004]
[1644509526076,34.59069172,112.08,112.0,0.024]
[1644509526276,34.59069172,112.08,111.98,23.9253]
[1644509526474,34.59069172,112.08,111.99,0.024]
[1644509526674,34.59069172,112.08,111.98,37.2921]
[1644509526879,34.59069172,112.08,111.98,37.5421]
[1644509527173,34.59069172,112.08,111.99,36.53932591]
[1644509527374,34.59069172,112.08,111.99,36.56332591]
[1644509527774,34.59069172,112.08,111.99,49.95282591]
[1644509529279,52.44399172,112.08,111.99,0.024]
[1644509529483,41.28391326,112.08,111.97,10.694]
[1644509529687,41.28391326,112.08,111.98,0.024]
[1644509529880,41.28391326,112.08,111.96,0.024]
[1644509530080,39.05269172,112.08,111.96,0.024]
[1644509530282,39.05269172,112.08,111.96,46.58044217]
[1644509530480,39.05269172,112.08,111.97,0.024]
[1644509530680,39.05269172,112.08,111.98,29.84614303]
[1644509530880,34.59069172,112.08,111.98,29.87014303]
[1644509531079,34.59069172,112.08,112.0,46.55644217]
[1644509532483,34.59069172,112.08,112.0,13.3876]
[1644509532686,4.462,112.07,111.99,0.024]
[1644509532885,6.69322154,112.07,111.97,0.024]
[1644509533087,54.34602154,112.07,111.93,10.694]
[1644509533285,2.23122154,112.06,111.93,10.694]
[1644509533505,45.31008607,112.05,111.94,43.33190388]
[1644509533710,42.67076199,112.03,111.95,0.024]
[1644509533903,47.13476199,112.03,111.94,56.75170388]
[1644509534205,47.13476199,112.03,111.94,13.4198]
[1644509534403,49.36598353,112.03,111.94,0.024]
[1644509534604,62.76308353,112.03,111.92,0.024]
[1644509534805,73.43308353,112.03,111.92,0.024]
[1644509535605,71.20186199,112.03,111.92,0.024]
[1644509536203,47.82511659,112.01,111.92,0.024]
[1644509536404,2.23122154,112.02,111.91,57.11221706]
[1644509536405,37.45953531,111.98,111.91,57.11221706]
[1644509536603,37.45953531,111.98,111.92,0.024]
[1644509537014,37.45953531,111.98,111.91,10.856]
[1644509537204,41.92553531,111.98,111.91,10.856]
[1644509537404,4.466,111.98,111.91,24.2552]
[1644509537604,24.0763,112.01,111.91,24.2552]
[1644509537804,24.0763,112.01,111.91,30.5052]
[1644509538004,24.0763,112.01,111.91,24.2552]
[1644509538405,46.41585501,112.0,111.91,60.35039285]
[1644509539203,46.41585501,112.0,111.92,1.62189676]
[1644509539407,24.0609,112.03,111.94,13.3954]
[1644509539804,24.3109,112.03,111.94,13.4194]
[1644509540305,43.90138832,112.02,111.95,41.22012935]
[1644509540504,43.90138832,112.02,111.95,54.61482935]
[1644509540704,43.90138832,112.02,111.95,13.3947]
[1644509540920,43.90138832,112.02,111.94,1.64589676]
[1644509540921,57.29978832,112.02,111.94,0.024]
[1644509541113,4.465,112.01,111.92,0.024]
[1644509541312,57.29978832,112.02,111.92,0.024]
[1644509541313,43.90138832,112.02,111.92,0.024]
[1644509541713,43.90138832,112.02,111.92,39.39708115]
[1644509542515,4.465,112.01,111.92,39.39708115]
[1644509542713,47.49998766,112.0,111.92,39.39708115]
[1644509542912,4.465,111.99,111.89,0.024]
[1644509543916,46.75422208,111.98,111.89,42.24915549]
[1644509544714,60.15692208,111.98,111.89,55.65075549]
[1644509545718,60.15692208,111.98,111.89,0.024]
[1644509545916,4.466,111.97,111.88,0.024]
[1644509546115,13.407,111.95,111.86,0.024]
[1644509546316,4.468,111.94,111.86,0.024]
[1644509546518,4.468,111.94,111.84,0.024]
[1644509546715,39.97739505,111.93,111.84,34.81059154]
[1644509546918,4.468,111.92,111.84,34.83459154]
[1644509547120,42.81092022,111.91,111.84,34.81059154]
[1644509547317,56.22162022,111.91,111.84,34.81059154]
[1644509547719,0.25,111.91,111.84,34.81059154]
[1644509547918,4.469,111.96,111.84,35.06059154]
[1644509548118,4.469,111.96,111.85,0.024]
[1644509548319,46.4932,111.97,111.85,0.024]
[1644509548519,13.407,111.94,111.85,0.024]
[1644509548719,35.15434571,111.93,111.84,48.21849154]
[1644509548917,35.15434571,111.93,111.85,0.024]
[1644509549120,44.6936,111.96,111.84,48.21849154]
[1644509549318,46.4932,111.97,111.85,0.024]
[1644509549519,4.468,111.95,111.85,0.024]
[1644509549723,13.4069,111.95,111.85,13.4305]
[1644509549918,4.468,111.94,111.85,13.4305]
[1644509550320,13.77322154,111.94,111.85,0.024]
[1644509550519,2.23122154,111.93,111.83,0.024]
[1644509550722,53.9037,111.92,111.81,0.024]
[1644509550919,53.9037,111.92,111.8,0.024]
[1644509551124,39.96530544,111.91,111.8,46.33053158]
[1644509551318,39.96530544,111.91,111.81,10.67]
[1644509551522,39.96530544,111.91,111.82,30.09605362]
[1644509551920,39.96530544,111.91,111.82,30.12005362]
[1644509552119,39.96530544,111.91,111.82,0.024]
[1644509552120,42.19652698,111.91,111.82,0.024]
[1644509552322,42.19652698,111.91,111.81,0.024]
[1644509552520,13.4142,111.89,111.81,0.024]
[1644509552723,13.4142,111.89,111.8,0.024]
[1644509552920,39.96530544,111.91,111.79,10.67]
[1644509553120,49.4347,111.92,111.8,1.64617159]
[1644509553322,49.4347,111.92,111.83,13.4092]
[1644509553520,4.469,111.91,111.81,0.024]
[1644509553723,49.4347,111.92,111.8,55.3899]
[1644509553921,4.47,111.91,111.81,0.024]
[1644509554120,62.8442,111.92,111.81,32.91295578]
[1644509554320,45.42218873,111.91,111.85,13.407]
[1644509554521,45.42218873,111.91,111.82,1.64607743]
[1644509554722,45.42218873,111.91,111.79,0.024]
[1644509554924,45.42218873,111.91,111.8,18.29207743]
[1644509555121,45.42218873,111.91,111.81,10.67]
[1644509555323,45.42218873,111.91,111.81,10.694]
[1644509555524,45.42218873,111.91,111.82,40.55316834]
[1644509555724,45.67218873,111.91,111.82,46.57716834]
[1644509555924,45.67218873,111.91,111.82,48.44924577]
[1644509556426,45.67218873,111.91,111.82,93.14014577]
[1644509556724,0.25,111.91,111.83,10.67]
[1644509556931,7.074,111.94,111.83,10.67]
[1644509557131,7.074,111.94,111.84,1.62207743]
[1644509557334,7.074,111.94,111.85,10.67]
[1644509557531,7.074,111.94,111.85,10.694]